Workbook

Sheet 每日计算
A1: 序号 | B1: 减肥时间 | C1: 前端 | D1: 后端 | E1: JavaScript | F1: PHP | G1: 数据库 | H1: 网络 | I1: 英语 | J1: 软考时间 | K1: 华盖时间 | L1: 碎片时间 | M1: 其他 | N1: 柳比歇夫时间 合计
A2: 1 | F2: 70
A3: 2 | F3: 45 | K3: 95
A4: 3 | F4: 40 | K4: 240
A5: 4 | F5: 40
A6: 5 | F6: 30
A7: 6
A8: 7
A9: 8
A10: 9
A11: 10
A12: 11
A13: 12
A14: 13
A15: 14
A16: 15
A17: 合计 | B17: =SUM(B2:B16) -> 0 | C17: 0 | D17: 0 | E17: 0 | F17: 225 | G17: 0 | H17: 0 | I17: 0 | J17: 0 | K17: 335 | L17: 0 | M17: 0 | N17: =SUM(C17:M17) -> 560
A18: 2025-12-15 | N18: =SUM(C18:M18) -> 0
A19: 2025-12-16 | N19: 0
A20: 2025-12-17 | N20: 0
A21: 2025-12-18 | N21: 0
A22: 2025-12-19 | N22: 0
A23: 2025-12-20 | N23: 0
A24: 2025-12-21 | N24: 0
A25: 2025-12-22 | N25: 0
A26: 2025-12-23 | N26: 0
A27: 2025-12-24 | N27: 0
A28: 2025-12-25 | N28: 0
A29: 2025-12-26 | N29: 0
A30: 2025-12-27 | N30: 0
A31: 2025-12-28 | N31: 0
A32: 2025-12-29 | N32: =SUM(C32:M32) -> 0
A33: 2025-12-30 | N33: 0
A34: 2025-12-31 | N34: 0
A35: 2026-01-01 | N35: 0
A36: 2026-01-02 | N36: 0
A37: 2026-01-03 | N37: 0
A38: 2026-01-04 | N38: 0
A39: 2026-01-05 | N39: 0
A40: 2026-01-06 | N40: 0
A41: 2026-01-07 | N41: 0
A42: 2026-01-08 | N42: 0
A43: 2026-01-09 | N43: 0
A44: 2026-01-10 | N44: 0
A45: 2026-01-11 | N45: 0
A46: 2026-01-12 | N46: 0
A47: 2026-01-13 | N47: 0
A48: 2026-01-14 | N48: 0
A49: 2026-01-15 | N49: 0
A50: 2026-01-16 | N50: 0
A51: 2026-01-17 | N51: 0
A52: 2026-01-18 | N52: 0
A53: 2026-01-19 | N53: 0
A54: 2026-01-20 | N54: 0
A55: 2026-01-21 | N55: 0
A56: 2026-01-22 | N56: 0
A57: 2026-01-23 | N57: 0
A58: 2026-01-24 | N58: 0
A59: 2026-01-25 | N59: 0
A60: 2026-01-26 | N60: 0
A61: 2026-01-27 | N61: 0
A62: 2026-01-28 | N62: 0
A63: 2026-01-29 | N63: 0
A64: 2026-01-30 | N64: 0
A65: 2026-01-31 | N65: 0
A66: 2026-02-01 | N66: 0
A67: 2026-02-02 | N67: 0
A68: 2026-02-03 | N68: 0
A69: 2026-02-04 | N69: 0
A70: 2026-02-05 | N70: 0
A71: 2026-02-06 | N71: 0
A72: 2026-02-07 | N72: 0
A73: 2026-02-08 | N73: 0
A74: 2026-02-09 | N74: 0
A75: 2026-02-10 | N75: 0
A76: 2026-02-11 | N76: 0
A77: 2026-02-12 | N77: 0
A78: 2026-02-13 | N78: 0
A79: 2026-02-14 | N79: 0
A80: 2026-02-15 | N80: 0
A81: 2026-02-16 | N81: 0
A82: 2026-02-17 | N82: 0
A83: 2026-02-18 | N83: 0
A84: 2026-02-19 | N84: 0
A85: 2026-02-20 | N85: 0
A86: 2026-02-21 | N86: 0
A87: 2026-02-22 | N87: 0
A88: 2026-02-23 | N88: 0
A89: 2026-02-24 | N89: 0
A90: 2026-02-25 | N90: 0
A91: 2026-02-26 | N91: 0
A92: 2026-02-27 | N92: 0
A93: 2026-02-28 | N93: 0
A94: 2026-03-01 | N94: 0
A95: 2026-03-02 | N95: 0
A96: 2026-03-03 | N96: =SUM(C96:M96) -> 0
A97: 2026-03-04 | N97: 0
A98: 2026-03-05 | N98: 0
A99: 2026-03-06 | N99: 0
A100: 2026-03-07 | N100: 0
A101: 2026-03-08 | N101: 0
A102: 2026-03-09 | N102: 0
A103: 2026-03-10 | N103: 0

Sheet 每日统计
A1: 时间合计 | C1: =SUM(C4:C383) -> 4938 | D1: 6785 | E1: 0 | F1: 2804 | G1: 17135 | H1: 7329 | I1: 531 | J1: 4252 | K1: 0 | L1: 435 | M1: 0 | N1: 7175 | O1: =SUM(O4:O1098) -> 54802 | P1: 2024.12.27-至今 已过天数 | Q1: 平均每天学习时间
N2: —— | O2: —— | P2: =COUNTA(O4:O1098) -> 448 | Q2: =O1/P2 -> 122.3258929 | R2: ——
A3: 日期 | B3: 星期 | C3: 减肥时间 | D3: 前端 | E3: 后端 | F3: JavaScript | G3: PHP | H3: 数据库 | I3: 网络 | J3: 英语 | K3: 软考时间 | L3: 华盖时间 | M3: 碎片时间 | N3: 其他 | O3: 柳比歇夫时间 合计 | P3: 柳比歇夫时间 历年平均值 | Q3: 今日 满意度 | R3: 日期
A4: 2024-12-27 | B4: 五 | C4: 0 | D4: 0 | E4: 0 | F4: 0 | G4: 0 | H4: 0 | I4: 0 | J4: 40 | K4: 0 | L4: 0 | M4: 0 | N4: 0 | O4: =SUM(D4:N4) -> 40 | P4: 40 | Q4: 满意 | R4: 2024-12-27 | S4: 五
A5: 2024-12-28 | B5: 六 | C5: 10 | D5: 0 | E5: 0 | F5: 0 | G5: 0 | H5: 0 | I5: 0 | J5: 280 | K5: 0 | L5: 0 | M5: 0 | N5: 0 | O5: 280 | P5: 160 | Q5: 满意 | R5: 2024-12-28 | S5: 六
A6: 2024-12-29 | B6: 日 | C6: 0 | D6: 0 | E6: 0 | F6: 0 | G6: 0 | H6: 0 | I6: 0 | J6: 95 | K6: 0 | L6: 0 | M6: 0 | N6: 0 | O6: 95 | P6: 138 | Q6: 满意 | R6: 2024-12-29 | S6: 日
A7: 2024-12-30 | B7: 一 | C7: 35 | D7: 60 | E7: 0 | F7: 0 | G7: 0 | H7: 0 | I7: 0 | J7: 320 | K7: 0 | L7: 0 | M7: 0 | N7: 0 | O7: 380 | P7: 199 | Q7: 满意 | R7: 2024-12-30 | S7: 一
A8: 2024-12-31 | B8: 二 | C8: 65 | D8: 165 | E8: 0 | F8: 0 | G8: 0 | H8: 0 | I8: 0 | J8: 130 | K8: 0 | L8: 0 | M8: 0 | N8: 0 | O8: 295 | P8: 218 | Q8: 满意 | R8: 2024-12-31 | S8: 二
A9: 2025-01-01 | B9: 三 | C9: 30 | D9: 30 | E9: 0 | F9: 0 | G9: 0 | H9: 0 | I9: 0 | J9: 120 | K9: 0 | L9: 0 | M9: 0 | N9: 0 | O9: 150 | P9: 207 | Q9: 满意 | R9: 2025-01-01 | S9: 三
A10: 2025-01-02 | B10: 四 | C10: 65 | D10: 110 | E10: 0 | F10: 0 | G10: 0 | H10: 0 | I10: 0 | J10: 125 | K10: 0 | L10: 0 | M10: 0 | N10: 0 | O10: 235 | P10: 211 | Q10: 不满意 | R10: 2025-01-02 | S10: 四
A11: 2025-01-03 | B11: 五 | C11: 45 | D11: 105 | E11: 0 | F11: 0 | G11: 0 | H11: 0 | I11: 0 | J11: 130 | K11: 0 | L11: 0 | M11: 0 | N11: 0 | O11: 235 | P11: 214 | Q11: 不满意 | R11: 2025-01-03 | S11: 五
A12: 2025-01-04 | B12: 六 | C12: 50 | D12: 65 | E12: 0 | F12: 0 | G12: 0 | H12: 0 | I12: 0 | J12: 0 | K12: 0 | L12: 0 | M12: 0 | N12: 0 | O12: 65 | P12: 197 | Q12: 满意 | R12: 2025-01-04 | S12: 六
A13: 2025-01-05 | B13: 日 | C13: 30 | D13: 30 | E13: 0 | F13: 0 | G13: 0 | H13: 0 | I13: 0 | J13: 0 | K13: 0 | L13: 0 | M13: 0 | N13: 0 | O13: 30 | P13: 201 | Q13: 还算满意 | R13: 2025-01-05 | S13: 日
A14: 2025-01-06 | B14: 一 | C14: 105 | D14: 145 | E14: 0 | F14: 0 | G14: 0 | H14: 0 | I14: 0 | J14: 170 | K14: 0 | L14: 0 | M14: 0 | N14: 0 | O14: 315 | P14: 212 | Q14: 满意 | R14: 2025-01-06 | S14: 一
A15: 2025-01-07 | B15: 二 | C15: 55 | D15: 130 | E15: 0 | F15: 0 | G15: 0 | H15: 0 | I15: 0 | J15: 110 | K15: 0 | L15: 0 | M15: 0 | N15: 180 | O15: 420 | P15: 212 | Q15: 满意 | R15: 2025-01-07 | S15: 二
A16: 2025-01-08 | B16: 三 | C16: 0 | D16: 0 | E16: 0 | F16: 0 | G16: 0 | H16: 0 | I16: 0 | J16: 90 | K16: 0 | L16: 0 | M16: 0 | N16: 0 | O16: 90 | P16: 202 | Q16: 满意 | R16: 2025-01-08 | S16: 三
A17: 2025-01-09 | B17: 四 | C17: 70 | D17: 175 | E17: 0 | F17: 0 | G17: 0 | H17: 0 | I17: 0 | J17: 75 | K17: 0 | L17: 0 | M17: 0 | N17: 0 | O17: 250 | P17: 206 | Q17: 满意 | R17: 2025-01-09 | S17: 四
A18: 2025-01-10 | B18: 五 | C18: 0 | D18: 0 | E18: 0 | F18: 0 | G18: 0 | H18: 0 | I18: 0 | J18: 140 | K18: 0 | L18: 0 | M18: 0 | N18: 0 | O18: 140 | P18: 201 | Q18: 满意 | R18: 2025-01-10 | S18: 五
A19: 2025-01-11 | B19: 六 | C19: 0 | D19: 0 | E19: 0 | F19: 0 | G19: 0 | H19: 0 | I19: 0 | J19: 35 | K19: 0 | L19: 0 | M19: 0 | N19: 0 | O19: 35 | P19: 191 | Q19: 满意 | R19: 2025-01-11 | S19: 六
A20: 2025-01-12 | B20: 日 | C20: 30 | D20: 280 | E20: 0 | F20: 0 | G20: 0 | H20: 0 | I20: 0 | J20: 70 | K20: 0 | L20: 0 | M20: 0 | N20: 0 | O20: 350 | P20: 200 | Q20: 很满意 | R20: 2025-01-12 | S20: 日
A21: 2025-01-13 | B21: 一 | C21: 60 | D21: 40 | E21: 0 | F21: 0 | G21: 0 | H21: 0 | I21: 0 | J21: 75 | K21: 0 | L21: 0 | M21: 0 | N21: 115 | O21: 230 | P21: 202 | Q21: 满意 | R21: 2025-01-13 | S21: 一
A22: 2025-01-14 | B22: 二 | C22: 75 | D22: 245 | E22: 0 | F22: 0 | G22: 0 | H22: 0 | I22: 0 | J22: 45 | K22: 0 | L22: 0 | M22: 0 | N22: 20 | O22: 310 | P22: 208 | Q22: 很满意 | R22: 2025-01-14 | S22: 二
A23: 2025-01-15 | B23: 三 | C23: 0 | D23: 95 | E23: 0 | F23: 0 | G23: 0 | H23: 0 | I23: 0 | J23: 0 | K23: 0 | L23: 0 | M23: 0 | N23: 0 | O23: 95 | P23: 202 | Q23: 满意 | R23: 2025-01-15 | S23: 三
A24: 2025-01-16 | B24: 四 | C24: 45 | D24: 105 | E24: 0 | F24: 0 | G24: 0 | H24: 0 | I24: 0 | J24: 115 | K24: 0 | L24: 0 | M24: 0 | N24: 0 | O24: 220 | P24: 213 | Q24: 满意 | R24: 2025-01-16 | S24: 四
A25: 2025-01-17 | B25: 五 | C25: 0 | D25: 410 | E25: 0 | F25: 60 | G25: 0 | H25: 0 | I25: 0 | J25: 0 | K25: 0 | L25: 0 | M25: 0 | N25: 0 | O25: 470 | P25: 215 | Q25: 满意 | R25: 2025-01-17 | S25: 五
A26: 2025-01-18 | B26: 六 | C26: 0 | D26: 0 | E26: 0 | F26: 85 | G26: 0 | H26: 0 | I26: 0 | J26: 15 | K26: 0 | L26: 0 | M26: 0 | N26: 0 | O26: 100 | P26: 210 | Q26: 不满意 | R26: 2025-01-18 | S26: 六
A27: 2025-01-19 | B27: 日 | C27: 0 | D27: 95 | E27: 0 | F27: 45 | G27: 0 | H27: 0 | I27: 0 | J27: 105 | K27: 0 | L27: 0 | M27: 0 | N27: 0 | O27: =SUM(D27:N27) -> 245 | P27: 211 | Q27: 还算满意 | R27: 2025-01-19 | S27: 日
A28: 2025-01-20 | B28: 一 | C28: 70 | D28: 60 | E28: 0 | F28: 205 | G28: 0 | H28: 0 | I28: 0 | J28: 30 | K28: 0 | L28: 0 | M28: 0 | N28: 0 | O28: 295 | P28: 215 | Q28: 满意 | R28: 2025-01-20 | S28: 一
A29: 2025-01-21 | B29: 二 | C29: 0 | D29: 90 | E29: 0 | F29: 60 | G29: 0 | H29: 0 | I29: 0 | J29: 0 | K29: 0 | L29: 0 | M29: 0 | N29: 0 | O29: 150 | P29: 212 | Q29: 满意 | R29: 2025-01-21 | S29: 二
A30: 2025-01-22 | B30: 三 | C30: 20 | D30: 75 | E30: 0 | F30: 30 | G30: 0 | H30: 0 | I30: 0 | J30: 60 | K30: 0 | L30: 0 | M30: 0 | N30: 0 | O30: 165 | P30: 219 | Q30: 满意 | R30: 2025-01-22 | S30: 三
A31: 2025-01-23 | B31: 四 | C31: 55 | D31: 85 | E31: 0 | F31: 0 | G31: 0 | H31: 0 | I31: 0 | J31: 45 | K31: 0 | L31: 0 | M31: 0 | N31: 0 | O31: 130 | P31: 208 | Q31: 满意 | R31: 2025-01-23 | S31: 四
A32: 2025-01-24 | B32: 五 | C32: 0 | D32: 95 | E32: 0 | F32: 0 | G32: 0 | H32: 0 | I32: 0 | J32: 0 | K32: 0 | L32: 0 | M32: 0 | N32: 0 | O32: 95 | P32: 204 | Q32: 满意 | R32: 2025-01-24 | S32: 五
A33: 2025-01-25 | B33: 六 | C33: 55 | D33: 0 | E33: 0 | F33: 0 | G33: 0 | H33: 0 | I33: 0 | J33: 0 | K33: 0 | L33: 0 | M33: 0 | N33: 0 | O33: 0 | P33: 197 | Q33: 满意 | R33: 2025-01-25 | S33: 六
A34: 2025-01-26 | B34: 日 | C34: 0 | D34: 0 | E34: 0 | F34: 0 | G34: 0 | H34: 0 | I34: 0 | J34: 0 | K34: 0 | L34: 0 | M34: 0 | N34: 0 | O34: 0 | P34: 191 | Q34: 不满意 | R34: 2025-01-26 | S34: 日
A35: 2025-01-27 | B35: 一 | C35: 0 | D35: 0 | E35: 0 | F35: 0 | G35: 0 | H35: 0 | I35: 0 | J35: 0 | K35: 0 | L35: 0 | M35: 0 | N35: 0 | O35: 0 | P35: 185 | Q35: 满意 | R35: 2025-01-27 | S35: 一
A36: 2025-01-28 | B36: 二 | C36: 0 | D36: 0 | E36: 0 | F36: 0 | G36: 0 | H36: 0 | I36: 0 | J36: 0 | K36: 0 | L36: 0 | M36: 0 | N36: 0 | O36: 0 | P36: 179 | Q36: 满意 | R36: 2025-01-28 | S36: 二
A37: 2025-01-29 | B37: 三 | C37: 0 | D37: 0 | E37: 0 | F37: 0 | G37: 0 | H37: 0 | I37: 0 | J37: 0 | K37: 0 | L37: 0 | M37: 0 | N37: 0 | O37: 0 | P37: 174 | Q37: 满意 | R37: 2025-01-29 | S37: 三
A38: 2025-01-30 | B38: 四 | C38: 0 | D38: 0 | E38: 0 | F38: 0 | G38: 0 | H38: 0 | I38: 0 | J38: 0 | K38: 0 | L38: 0 | M38: 0 | N38: 0 | O38: 0 | P38: 169 | Q38: 满意 | R38: 2025-01-30 | S38: 四
A39: 2025-01-31 | B39: 五 | C39: 0 | D39: 0 | E39: 0 | F39: 0 | G39: 0 | H39: 0 | I39: 0 | J39: 0 | K39: 0 | L39: 0 | M39: 0 | N39: 0 | O39: 0 | P39: 164 | Q39: 满意 | R39: 2025-01-31 | S39: 五
A40: 2025-02-01 | B40: 六 | C40: 0 | D40: 0 | E40: 0 | F40: 0 | G40: 0 | H40: 0 | I40: 0 | J40: 0 | K40: 0 | L40: 0 | M40: 0 | N40: 0 | O40: 0 | P40: 160 | Q40: 满意 | R40: 2025-02-01 | S40: 六
A41: 2025-02-02 | B41: 日 | C41: 0 | D41: 0 | E41: 0 | F41: 0 | G41: 0 | H41: 0 | I41: 0 | J41: 0 | K41: 0 | L41: 0 | M41: 0 | N41: 0 | O41: 0 | P41: 156 | Q41: 很满意 | R41: 2025-02-02 | S41: 日
A42: 2025-02-03 | B42: 一 | C42: 0 | D42: 0 | E42: 0 | F42: 0 | G42: 0 | H42: 0 | I42: 0 | J42: 0 | K42: 0 | L42: 0 | M42: 0 | N42: 0 | O42: 0 | P42: 152 | Q42: 满意 | R42: 2025-02-03 | S42: 一
A43: 2025-02-04 | B43: 二 | C43: 0 | D43: 0 | E43: 0 | F43: 0 | G43: 0 | H43: 0 | I43: 0 | J43: 0 | K43: 0 | L43: 0 | M43: 0 | N43: 115 | O43: 115 | P43: 151 | Q43: 满意 | R43: 2025-02-04 | S43: 二
A44: 2025-02-05 | B44: 三 | C44: 40 | D44: 100 | E44: 0 | F44: 15 | G44: 0 | H44: 0 | I44: 0 | J44: 40 | K44: 0 | L44: 0 | M44: 0 | N44: 0 | O44: 155 | P44: 151 | Q44: 很满意 | R44: 2025-02-05 | S44: 三
A45: 2025-02-06 | B45: 四 | C45: 30 | D45: 155 | E45: 0 | F45: 0 | G45: 0 | H45: 0 | I45: 0 | J45: 45 | K45: 0 | L45: 0 | M45: 0 | N45: 0 | O45: 200 | P45: 152 | Q45: 满意 | R45: 2025-02-06 | S45: 四
A46: 2025-02-07 | B46: 五 | C46: 0 | D46: 0 | E46: 0 | F46: 60 | G46: 0 | H46: 0 | I46: 0 | J46: 10 | K46: 0 | L46: 0 | M46: 0 | N46: 0 | O46: 70 | P46: 150 | Q46: 满意 | R46: 2025-02-07 | S46: 五
A47: 2025-02-08 | B47: 六 | C47: 0 | D47: 0 | E47: 0 | F47: 0 | G47: 0 | H47: 0 | I47: 0 | J47: 0 | K47: 0 | L47: 0 | M47: 0 | N47: 80 | O47: 80 | P47: 148 | Q47: 满意 | R47: 2025-02-08 | S47: 六
A48: 2025-02-09 | B48: 日 | C48: 10 | D48: 95 | E48: 0 | F48: 0 | G48: 0 | H48: 0 | I48: 0 | J48: 0 | K48: 0 | L48: 0 | M48: 0 | N48: 0 | O48: 95 | P48: 147 | Q48: 满意 | R48: 2025-02-09 | S48: 日
A49: 2025-02-10 | B49: 一 | C49: 40 | D49: 25 | E49: 0 | F49: 0 | G49: 0 | H49: 0 | I49: 0 | J49: 30 | K49: 0 | L49: 0 | M49: 0 | N49: 0 | O49: 55 | P49: 145 | Q49: 满意 | R49: 2025-02-10 | S49: 一
A50: 2025-02-11 | B50: 二 | C50: 0 | D50: 185 | E50: 0 | F50: 50 | G50: 0 | H50: 0 | I50: 0 | J50: 0 | K50: 0 | L50: 0 | M50: 0 | N50: 0 | O50: 235 | P50: 147 | Q50: 满意 | R50: 2025-02-11 | S50: 二
A51: 2025-02-12 | B51: 三 | C51: 30 | D51: 145 | E51: 0 | F51: 0 | G51: 0 | H51: 0 | I51: 0 | J51: 0 | K51: 0 | L51: 0 | M51: 0 | N51: 0 | O51: 145 | P51: 147 | Q51: 满意 | R51: 2025-02-12 | S51: 三
A52: 2025-02-13 | B52: 四 | C52: 40 | D52: 335 | E52: 0 | F52: 65 | G52: 0 | H52: 0 | I52: 0 | J52: 15 | K52: 0 | L52: 0 | M52: 0 | N52: 0 | O52: 415 | P52: 153 | Q52: 满意 | R52: 2025-02-13 | S52: 四
A53: 2025-02-14 | B53: 五 | C53: 45 | D53: 25 | E53: 0 | F53: 40 | G53: 0 | H53: 0 | I53: 0 | J53: 0 | K53: 0 | L53: 0 | M53: 0 | N53: 0 | O53: 65 | P53: 151 | Q53: 满意 | R53: 2025-02-14 | S53: 五
A54: 2025-02-15 | B54: 六 | C54: 0 | D54: 0 | E54: 0 | F54: 0 | G54: 0 | H54: 0 | I54: 0 | J54: 0 | K54: 0 | L54: 0 | M54: 0 | N54: 0 | O54: 0 | P54: 148 | Q54: 满意 | R54: 2025-02-15 | S54: 六
A55: 2025-02-16 | B55: 日 | C55: 0 | D55: 0 | E55: 0 | F55: 0 | G55: 0 | H55: 0 | I55: 0 | J55: 0 | K55: 0 | L55: 0 | M55: 0 | N55: 0 | O55: 0 | P55: 145 | Q55: 满意 | R55: 2025-02-16 | S55: 日
A56: 2025-02-17 | B56: 一 | C56: 0 | D56: 0 | E56: 0 | F56: 0 | G56: 0 | H56: 0 | I56: 0 | J56: 0 | K56: 0 | L56: 0 | M56: 0 | N56: 0 | O56: 0 | P56: 142 | Q56: 不满意 | R56: 2025-02-17 | S56: 一
A57: 2025-02-18 | B57: 二 | C57: 0 | D57: 0 | E57: 0 | F57: 0 | G57: 0 | H57: 0 | I57: 0 | J57: 0 | K57: 0 | L57: 0 | M57: 0 | N57: 0 | O57: 0 | P57: 140 | Q57: 不满意 | R57: 2025-02-18 | S57: 二
A58: 2025-02-19 | B58: 三 | C58: 45 | D58: 0 | E58: 0 | F58: 0 | G58: 0 | H58: 0 | I58: 0 | J58: 0 | K58: 0 | L58: 0 | M58: 0 | N58: 85 | O58: 85 | P58: 139 | Q58: 不满意 | R58: 2025-02-19 | S58: 三
A59: 2025-02-20 | B59: 四 | C59: 30 | D59: 0 | E59: 0 | F59: 40 | G59: 0 | H59: 0 | I59: 0 | J59: 0 | K59: 0 | L59: 0 | M59: 0 | N59: 85 | O59: 125 | P59: 138 | Q59: 满意 | R59: 2025-02-20 | S59: 四
A60: 2025-02-21 | B60: 五 | C60: 25 | D60: 0 | E60: 0 | F60: 130 | G60: 0 | H60: 0 | I60: 0 | J60: 0 | K60: 0 | L60: 0 | M60: 0 | N60: 0 | O60: 130 | P60: 138 | Q60: 满意 | R60: 2025-02-21 | S60: 五
A61: 2025-02-22 | B61: 六 | C61: 0 | D61: 0 | E61: 0 | F61: 0 | G61: 0 | H61: 0 | I61: 0 | J61: 0 | K61: 0 | L61: 0 | M61: 0 | N61: 0 | O61: 0 | P61: 136 | Q61: 满意 | R61: 2025-02-22 | S61: 六
A62: 2025-02-23 | B62: 日 | C62: 75 | D62: 0 | E62: 0 | F62: 175 | G62: 0 | H62: 0 | I62: 0 | J62: 0 | K62: 0 | L62: 0 | M62: 0 | N62: 35 | O62: 210 | P62: 137 | Q62: 满意 | R62: 2025-02-23 | S62: 日
A63: 2025-02-24 | B63: 一 | C63: 40 | D63: 0 | E63: 0 | F63: 135 | G63: 0 | H63: 0 | I63: 60 | J63: 0 | K63: 0 | L63: 0 | M63: 0 | N63: 0 | O63: 195 | P63: 138 | Q63: 满意 | R63: 2025-02-24 | S63: 一
A64: 2025-02-25 | B64: 二 | C64: 20 | D64: 0 | E64: 0 | F64: 125 | G64: 0 | H64: 0 | I64: 90 | J64: 0 | K64: 0 | L64: 0 | M64: 0 | N64: 0 | O64: 215 | P64: 139 | Q64: 满意 | R64: 2025-02-25 | S64: 二
A65: 2025-02-26 | B65: 三 | C65: 0 | D65: 0 | E65: 0 | F65: 0 | G65: 0 | H65: 0 | I65: 0 | J65: 0 | K65: 0 | L65: 0 | M65: 0 | N65: 0 | O65: 0 | P65: 137 | Q65: 满意 | R65: 2025-02-26 | S65: 三
A66: 2025-02-27 | B66: 四 | C66: 0 | D66: 0 | E66: 0 | F66: 0 | G66: 0 | H66: 0 | I66: 0 | J66: 0 | K66: 0 | L66: 0 | M66: 0 | N66: 0 | O66: 0 | P66: 135 | Q66: 满意 | R66: 2025-02-27 | S66: 四
A67: 2025-02-28 | B67: 五 | C67: 0 | D67: 0 | E67: 0 | F67: 0 | G67: 0 | H67: 0 | I67: 0 | J67: 0 | K67: 0 | L67: 0 | M67: 0 | N67: 0 | O67: 0 | P67: 133 | Q67: 满意 | R67: 2025-02-28 | S67: 五
A68: 2025-03-01 | B68: 六 | C68: 0 | D68: 0 | E68: 0 | F68: 0 | G68: 0 | H68: 0 | I68: 0 | J68: 0 | K68: 0 | L68: 0 | M68: 0 | N68: 0 | O68: =SUM(D68:N68) -> 0 | P68: 131 | Q68: 满意 | R68: 2025-03-01 | S68: 六
A69: 2025-03-02 | B69: 日 | C69: 0 | D69: 0 | E69: 0 | F69: 0 | G69: 0 | H69: 0 | I69: 0 | J69: 0 | K69: 0 | L69: 0 | M69: 0 | N69: 0 | O69: 0 | P69: 129 | Q69: 满意 | R69: 2025-03-02 | S69: 日
A70: 2025-03-03 | B70: 一 | C70: 0 | D70: 0 | E70: 0 | F70: 0 | G70: 0 | H70: 0 | I70: 0 | J70: 0 | K70: 0 | L70: 0 | M70: 0 | N70: 0 | O70: 0 | P70: 127 | Q70: 满意 | R70: 2025-03-03 | S70: 一
A71: 2025-03-04 | B71: 二 | C71: 0 | D71: 0 | E71: 0 | F71: 0 | G71: 0 | H71: 0 | I71: 0 | J71: 0 | K71: 0 | L71: 0 | M71: 0 | N71: 0 | O71: 0 | P71: 125 | Q71: 满意 | R71: 2025-03-04 | S71: 二
A72: 2025-03-05 | B72: 三 | C72: 0 | D72: 0 | E72: 0 | F72: 0 | G72: 0 | H72: 0 | I72: 0 | J72: 0 | K72: 0 | L72: 0 | M72: 0 | N72: 0 | O72: 0 | P72: 123 | Q72: 满意 | R72: 2025-03-05 | S72: 三
A73: 2025-03-06 | B73: 四 | C73: 20 | D73: 0 | E73: 0 | F73: 0 | G73: 0 | H73: 0 | I73: 35 | J73: 0 | K73: 0 | L73: 0 | M73: 0 | N73: 0 | O73: 35 | P73: 122 | Q73: 满意 | R73: 2025-03-06 | S73: 四
A74: 2025-03-07 | B74: 五 | C74: 0 | D74: 0 | E74: 0 | F74: 0 | G74: 0 | H74: 0 | I74: 70 | J74: 0 | K74: 0 | L74: 0 | M74: 0 | N74: 0 | O74: 70 | P74: 121 | Q74: 满意 | R74: 2025-03-07 | S74: 五
A75: 2025-03-08 | B75: 六 | C75: 45 | D75: 45 | E75: 0 | F75: 0 | G75: 0 | H75: 0 | I75: 0 | J75: 0 | K75: 0 | L75: 0 | M75: 0 | N75: 0 | O75: 45 | P75: 120 | Q75: 满意 | R75: 2025-03-08 | S75: 六
A76: 2025-03-09 | B76: 日 | C76: 0 | D76: 0 | E76: 0 | F76: 0 | G76: 0 | H76: 0 | I76: 0 | J76: 0 | K76: 0 | L76: 0 | M76: 0 | N76: 0 | O76: 0 | P76: 118 | Q76: 很满意 | R76: 2025-03-09 | S76: 日
A77: 2025-03-10 | B77: 一 | C77: 15 | D77: 0 | E77: 0 | F77: 0 | G77: 0 | H77: 0 | I77: 35 | J77: 0 | K77: 0 | L77: 0 | M77: 0 | N77: 0 | O77: 35 | P77: 117 | Q77: 一般 | R77: 2025-03-10 | S77: 一
A78: 2025-03-11 | B78: 二 | C78: 40 | D78: 101 | E78: 0 | F78: 0 | G78: 0 | H78: 0 | I78: 123 | J78: 17 | K78: 0 | L78: 0 | M78: 0 | N78: 0 | O78: 241 | P78: 119 | Q78: 满意 | R78: 2025-03-11 | S78: 二
A79: 2025-03-12 | B79: 三 | C79: 0 | D79: 0 | E79: 0 | F79: 18 | G79: 0 | H79: 0 | I79: 23 | J79: 0 | K79: 0 | L79: 0 | M79: 0 | N79: 0 | O79: 41 | P79: 118 | Q79: 满意 | R79: 2025-03-12 | S79: 三
A80: 2025-03-13 | B80: 四 | C80: 32 | D80: 14 | E80: 0 | F80: 55 | G80: 0 | H80: 0 | I80: 0 | J80: 0 | K80: 0 | L80: 0 | M80: 0 | N80: 0 | O80: 69 | P80: 117 | Q80: 满意 | R80: 2025-03-13 | S80: 四
A81: 2025-03-14 | B81: 五 | C81: 0 | D81: 0 | E81: 0 | F81: 0 | G81: 0 | H81: 219 | I81: 0 | J81: 0 | K81: 0 | L81: 0 | M81: 0 | N81: 0 | O81: 219 | P81: 119 | Q81: 满意 | R81: 2025-03-14 | S81: 五
A82: 2025-03-15 | B82: 六 | C82: 0 | D82: 0 | E82: 0 | F82: 135 | G82: 0 | H82: 0 | I82: 0 | J82: 0 | K82: 0 | L82: 0 | M82: 0 | N82: 0 | O82: 135 | P82: 119 | Q82: 满意 | R82: 2025-03-15 | S82: 六
A83: 2025-03-16 | B83: 日 | C83: 63 | D83: 0 | E83: 0 | F83: 48 | G83: 0 | H83: 0 | I83: 0 | J83: 0 | K83: 0 | L83: 0 | M83: 0 | N83: 0 | O83: 48 | P83: 118 | Q83: 很不满意 | R83: 2025-03-16 | S83: 日
A84: 2025-03-17 | B84: 一 | C84: 0 | D84: 0 | E84: 0 | F84: 0 | G84: 0 | H84: 0 | I84: 0 | J84: 0 | K84: 0 | L84: 0 | M84: 0 | N84: 0 | O84: 0 | P84: 117 | Q84: 满意 | R84: 2025-03-17 | S84: 一
A85: 2025-03-18 | B85: 二 | C85: 0 | D85: 0 | E85: 0 | F85: 0 | G85: 0 | H85: 0 | I85: 0 | J85: 0 | K85: 0 | L85: 0 | M85: 0 | N85: 0 | O85: 0 | P85: 115 | Q85: 满意 | R85: 2025-03-18 | S85: 二
A86: 2025-03-19 | B86: 三 | C86: 0 | D86: 0 | E86: 0 | F86: 0 | G86: 0 | H86: 0 | I86: 0 | J86: 0 | K86: 0 | L86: 0 | M86: 0 | N86: 0 | O86: 0 | P86: 114 | Q86: 满意 | R86: 2025-03-19 | S86: 三
A87: 2025-03-20 | B87: 四 | C87: 0 | D87: 0 | E87: 0 | F87: 0 | G87: 0 | H87: 0 | I87: 0 | J87: 0 | K87: 0 | L87: 0 | M87: 0 | N87: 0 | O87: 0 | P87: 112 | Q87: 满意 | R87: 2025-03-20 | S87: 四
A88: 2025-03-21 | B88: 五 | C88: 0 | D88: 0 | E88: 0 | F88: 0 | G88: 0 | H88: 0 | I88: 0 | J88: 0 | K88: 0 | L88: 0 | M88: 0 | N88: 0 | O88: 0 | P88: 111 | Q88: 满意 | R88: 2025-03-21 | S88: 五
A89: 2025-03-22 | B89: 六 | C89: 70 | D89: 0 | E89: 0 | F89: 0 | G89: 0 | H89: 0 | I89: 0 | J89: 0 | K89: 0 | L89: 0 | M89: 0 | N89: 0 | O89: 0 | P89: 110 | Q89: 满意 | R89: 2025-03-22 | S89: 六
A90: 2025-03-23 | B90: 日 | C90: 0 | D90: 0 | E90: 0 | F90: 0 | G90: 0 | H90: 0 | I90: 0 | J90: 0 | K90: 0 | L90: 0 | M90: 0 | N90: 0 | O90: 0 | P90: 108 | Q90: 满意 | R90: 2025-03-23 | S90: 日
A91: 2025-03-24 | B91: 一 | C91: 0 | D91: 0 | E91: 0 | F91: 0 | G91: 0 | H91: 0 | I91: 0 | J91: 0 | K91: 0 | L91: 0 | M91: 0 | N91: 0 | O91: 0 | P91: 107 | Q91: 不满意 | R91: 2025-03-24 | S91: 一
A92: 2025-03-25 | B92: 二 | C92: 0 | D92: 0 | E92: 0 | F92: 0 | G92: 0 | H92: 0 | I92: 0 | J92: 0 | K92: 0 | L92: 0 | M92: 0 | N92: 0 | O92: 0 | P92: 106 | Q92: 不满意 | R92: 2025-03-25 | S92: 二
A93: 2025-03-26 | B93: 三 | C93: 50 | D93: 0 | E93: 0 | F93: 130 | G93: 0 | H93: 10 | I93: 0 | J93: 0 | K93: 0 | L93: 0 | M93: 0 | N93: 0 | O93: 140 | P93: 106 | Q93: 满意 | R93: 2025-03-26 | S93: 三
A94: 2025-03-27 | B94: 四 | C94: 20 | D94: 80 | E94: 0 | F94: 0 | G94: 0 | H94: 295 | I94: 20 | J94: 0 | K94: 0 | L94: 0 | M94: 0 | N94: 0 | O94: 395 | P94: 110 | Q94: 满意 | R94: 2025-03-27 | S94: 四
A95: 2025-03-28 | B95: 五 | C95: 40 | D95: 0 | E95: 0 | F95: 220 | G95: 0 | H95: 55 | I95: 0 | J95: 0 | K95: 0 | L95: 0 | M95: 0 | N95: 25 | O95: 300 | P95: 112 | Q95: 满意 | R95: 2025-03-28 | S95: 五
A96: 2025-03-29 | B96: 六 | C96: 0 | D96: 0 | E96: 0 | F96: 5 | G96: 0 | H96: 0 | I96: 0 | J96: 0 | K96: 0 | L96: 0 | M96: 0 | N96: 0 | O96: 5 | P96: 111 | Q96: 满意 | R96: 2025-03-29 | S96: 六
A97: 2025-03-30 | B97: 日 | C97: 0 | D97: 0 | E97: 0 | F97: 0 | G97: 0 | H97: 365 | I97: 0 | J97: 0 | K97: 0 | L97: 0 | M97: 0 | N97: 0 | O97: 365 | P97: 113 | Q97: 满意 | R97: 2025-03-30 | S97: 日
A98: 2025-03-31 | B98: 一 | C98: 30 | D98: 0 | E98: 0 | F98: 0 | G98: 0 | H98: 285 | I98: 0 | J98: 0 | K98: 0 | L98: 0 | M98: 0 | N98: 0 | O98: 285 | P98: 115 | Q98: 满意 | R98: 2025-03-31 | S98: 一
A99: 2025-04-01 | B99: 二 | C99: 50 | D99: 0 | E99: 0 | F99: 0 | G99: 0 | H99: 240 | I99: 0 | J99: 0 | K99: 0 | L99: 0 | M99: 0 | N99: 0 | O99: 240 | P99: 116 | Q99: 满意 | R99: 2025-04-01 | S99: 二
A100: 2025-04-02 | B100: 三 | C100: 80 | D100: 0 | E100: 0 | F100: 270 | G100: 0 | H100: 0 | I100: 0 | J100: 0 | K100: 0 | L100: 0 | M100: 0 | N100: 0 | O100: 270 | P100: 118 | Q100: 满意 | R100: 2025-04-02 | S100: 三
A101: 2025-04-03 | B101: 四 | C101: 25 | D101: 0 | E101: 0 | F101: 305 | G101: 0 | H101: 0 | I101: 0 | J101: 0 | K101: 0 | L101: 0 | M101: 0 | N101: 0 | O101: 305 | P101: 120 | Q101: 满意 | R101: 2025-04-03 | S101: 四
A102: 2025-04-04 | B102: 五 | C102: 113 | D102: 0 | E102: 0 | F102: 298 | G102: 0 | H102: 0 | I102: 0 | J102: 0 | K102: 0 | L102: 0 | M102: 0 | N102: 0 | O102: 298 | P102: 122 | Q102: 满意 | R102: 2025-04-04 | S102: 五
A103: 2025-04-05 | B103: 六 | C103: 0 | D103: 0 | E103: 0 | F103: 0 | G103: 0 | H103: 65 | I103: 0 | J103: 0 | K103: 0 | L103: 0 | M103: 0 | N103: 0 | O103: 65 | P103: 121 | Q103: 满意 | R103: 2025-04-05 | S103: 六
A104: 2025-04-06 | B104: 日 | C104: 0 | D104: 0 | E104: 0 | F104: 0 | G104: 0 | H104: 0 | I104: 0 | J104: 0 | K104: 0 | L104: 0 | M104: 0 | N104: 0 | O104: 0 | P104: 120 | Q104: 满意 | R104: 2025-04-06 | S104: 日
A105: 2025-04-07 | B105: 一 | C105: 0 | D105: 0 | E105: 0 | F105: 0 | G105: 0 | H105: 160 | I105: 0 | J105: 0 | K105: 0 | L105: 0 | M105: 0 | N105: 0 | O105: 160 | P105: 120 | Q105: 满意 | R105: 2025-04-07 | S105: 一
A106: 2025-04-08 | B106: 二 | C106: 60 | D106: 0 | E106: 0 | F106: 0 | G106: 0 | H106: 350 | I106: 0 | J106: 0 | K106: 0 | L106: 0 | M106: 0 | N106: 0 | O106: 350 | P106: 122 | Q106: 满意 | R106: 2025-04-08 | S106: 二
A107: 2025-04-09 | B107: 三 | C107: 25 | D107: 0 | E107: 0 | F107: 0 | G107: 0 | H107: 520 | I107: 0 | J107: 0 | K107: 0 | L107: 0 | M107: 0 | N107: 0 | O107: 520 | P107: 126 | Q107: 满意 | R107: 2025-04-09 | S107: 三
A108: 2025-04-10 | B108: 四 | C108: 0 | D108: 0 | E108: 0 | F108: 0 | G108: 0 | H108: 380 | I108: 0 | J108: 50 | K108: 0 | L108: 0 | M108: 0 | N108: 0 | O108: 430 | P108: 129 | Q108: 满意 | R108: 2025-04-10 | S108: 四
A109: 2025-04-11 | B109: 五 | C109: 0 | D109: 0 | E109: 0 | F109: 0 | G109: 0 | H109: 115 | I109: 0 | J109: 45 | K109: 0 | L109: 0 | M109: 0 | N109: 0 | O109: 160 | P109: 129 | Q109: 满意 | R109: 2025-04-11 | S109: 五
A110: 2025-04-12 | B110: 六 | C110: 55 | D110: 0 | E110: 0 | F110: 0 | G110: 0 | H110: 400 | I110: 0 | J110: 0 | K110: 0 | L110: 0 | M110: 0 | N110: 0 | O110: 400 | P110: 132 | Q110: 很满意 | R110: 2025-04-12 | S110: 六
A111: 2025-04-13 | B111: 日 | C111: 0 | D111: 0 | E111: 0 | F111: 0 | G111: 0 | H111: 100 | I111: 0 | J111: 0 | K111: 0 | L111: 0 | M111: 0 | N111: 0 | O111: 100 | P111: 132 | Q111: 满意 | R111: 2025-04-13 | S111: 日
A112: 2025-04-14 | B112: 一 | C112: 20 | D112: 0 | E112: 0 | F112: 0 | G112: 0 | H112: 220 | I112: 0 | J112: 170 | K112: 0 | L112: 0 | M112: 0 | N112: 0 | O112: 390 | P112: 134 | Q112: 满意 | R112: 2025-04-14 | S112: 一
A113: 2025-04-15 | B113: 二 | C113: 50 | D113: 0 | E113: 0 | F113: 0 | G113: 0 | H113: 230 | I113: 0 | J113: 145 | K113: 0 | L113: 0 | M113: 0 | N113: 0 | O113: 375 | P113: 136 | Q113: 满意 | R113: 2025-04-15 | S113: 二
A114: 2025-04-16 | B114: 三 | C114: 65 | D114: 0 | E114: 0 | F114: 0 | G114: 0 | H114: 355 | I114: 0 | J114: 50 | K114: 0 | L114: 0 | M114: 0 | N114: 0 | O114: 405 | P114: 139 | Q114: 满意 | R114: 2025-04-16 | S114: 三
A115: 2025-04-17 | B115: 四 | C115: 0 | D115: 0 | E115: 0 | F115: 0 | G115: 0 | H115: 275 | I115: 0 | J115: 50 | K115: 0 | L115: 0 | M115: 0 | N115: 0 | O115: 325 | P115: 140 | Q115: 满意 | R115: 2025-04-17 | S115: 四
A116: 2025-04-18 | B116: 五 | C116: 35 | D116: 0 | E116: 0 | F116: 0 | G116: 0 | H116: 250 | I116: 0 | J116: 30 | K116: 0 | L116: 0 | M116: 0 | N116: 0 | O116: 280 | P116: 142 | Q116: 满意 | R116: 2025-04-18 | S116: 五
A117: 2025-04-19 | B117: 六 | C117: 35 | D117: 0 | E117: 0 | F117: 0 | G117: 0 | H117: 170 | I117: 0 | J117: 30 | K117: 0 | L117: 0 | M117: 0 | N117: 0 | O117: 200 | P117: 142 | Q117: 满意 | R117: 2025-04-19 | S117: 六
A118: 2025-04-20 | B118: 日 | C118: 0 | D118: 0 | E118: 0 | F118: 0 | G118: 0 | H118: 0 | I118: 0 | J118: 0 | K118: 0 | L118: 0 | M118: 0 | N118: 0 | O118: 0 | P118: 141 | Q118: 满意 | R118: 2025-04-20 | S118: 日
A119: 2025-04-21 | B119: 一 | C119: 55 | D119: 0 | E119: 0 | F119: 0 | G119: 0 | H119: 115 | I119: 0 | J119: 40 | K119: 0 | L119: 0 | M119: 0 | N119: 0 | O119: 155 | P119: 141 | Q119: 满意 | R119: 2025-04-21 | S119: 一
A120: 2025-04-22 | B120: 二 | C120: 30 | D120: 0 | E120: 0 | F120: 0 | G120: 0 | H120: 195 | I120: 0 | J120: 85 | K120: 0 | L120: 0 | M120: 0 | N120: 0 | O120: 280 | P120: 142 | Q120: 满意 | R120: 2025-04-22 | S120: 二
A121: 2025-04-23 | B121: 三 | C121: 35 | D121: 0 | E121: 0 | F121: 0 | G121: 0 | H121: 260 | I121: 0 | J121: 60 | K121: 0 | L121: 0 | M121: 0 | N121: 0 | O121: 320 | P121: 144 | Q121: 满意 | R121: 2025-04-23 | S121: 三
A122: 2025-04-24 | B122: 四 | C122: 0 | D122: 0 | E122: 0 | F122: 0 | G122: 0 | H122: 0 | I122: 0 | J122: 0 | K122: 0 | L122: 0 | M122: 0 | N122: 0 | O122: 0 | P122: 142 | Q122: 满意 | R122: 2025-04-24 | S122: 四
A123: 2025-04-25 | B123: 五 | C123: 35 | D123: 0 | E123: 0 | F123: 0 | G123: 0 | H123: 90 | I123: 0 | J123: 95 | K123: 0 | L123: 0 | M123: 0 | N123: 0 | O123: 185 | P123: 143 | Q123: 满意 | R123: 2025-04-25 | S123: 五
A124: 2025-04-26 | B124: 六 | C124: 50 | D124: 0 | E124: 0 | F124: 0 | G124: 0 | H124: 280 | I124: 0 | J124: 0 | K124: 0 | L124: 0 | M124: 0 | N124: 0 | O124: 280 | P124: 144 | Q124: 满意 | R124: 2025-04-26 | S124: 六
A125: 2025-04-27 | B125: 日 | C125: 50 | D125: 0 | E125: 0 | F125: 0 | G125: 0 | H125: 345 | I125: 0 | J125: 0 | K125: 0 | L125: 0 | M125: 0 | N125: 0 | O125: 345 | P125: 146 | Q125: 满意 | R125: 2025-04-27 | S125: 日
A126: 2025-04-28 | B126: 一 | C126: 100 | D126: 0 | E126: 0 | F126: 0 | G126: 0 | H126: 150 | I126: 0 | J126: 40 | K126: 0 | L126: 0 | M126: 0 | N126: 0 | O126: 190 | P126: 146 | Q126: 很满意 | R126: 2025-04-28 | S126: 一
A127: 2025-04-29 | B127: 二 | C127: 95 | D127: 0 | E127: 0 | F127: 0 | G127: 0 | H127: 280 | I127: 0 | J127: 45 | K127: 0 | L127: 50 | M127: 0 | N127: 0 | O127: 375 | P127: 147 | Q127: 满意 | R127: 2025-04-29 | S127: 二
A128: 2025-04-30 | B128: 三 | C128: 125 | D128: 255 | E128: 0 | F128: 0 | G128: 0 | H128: 0 | I128: 0 | J128: 35 | K128: 0 | L128: 50 | M128: 0 | N128: 0 | O128: 340 | P128: 149 | Q128: 很满意 | R128: 2025-04-30 | S128: 三
A129: 2025-05-01 | B129: 四 | C129: 0 | D129: 160 | E129: 0 | F129: 0 | G129: 0 | H129: 0 | I129: 0 | J129: 55 | K129: 0 | L129: 0 | M129: 0 | N129: 0 | O129: 215 | P129: 150 | Q129: 满意 | R129: 2025-05-01 | S129: 四
A130: 2025-05-02 | B130: 五 | C130: 25 | D130: 215 | E130: 0 | F130: 0 | G130: 0 | H130: 0 | I130: 0 | J130: 65 | K130: 0 | L130: 100 | M130: 0 | N130: 0 | O130: 380 | P130: 152 | Q130: 满意 | R130: 2025-05-02 | S130: 五
A131: 2025-05-03 | B131: 六 | C131: 0 | D131: 135 | E131: 0 | F131: 0 | G131: 0 | H131: 0 | I131: 0 | J131: 45 | K131: 0 | L131: 20 | M131: 0 | N131: 0 | O131: 200 | P131: 152 | Q131: 满意 | R131: 2025-05-03 | S131: 六
A132: 2025-05-04 | B132: 日 | C132: 40 | D132: 260 | E132: 0 | F132: 0 | G132: 0 | H132: 0 | I132: 0 | J132: 20 | K132: 0 | L132: 30 | M132: 0 | N132: 0 | O132: =SUM(D132:N132) -> 310 | P132: 153 | Q132: 满意 | R132: 2025-05-04 | S132: 日
A133: 2025-05-05 | B133: 一 | C133: 25 | D133: 110 | E133: 0 | F133: 0 | G133: 0 | H133: 0 | I133: 0 | J133: 35 | K133: 0 | L133: 0 | M133: 0 | N133: 0 | O133: 145 | P133: 153 | Q133: 满意 | R133: 2025-05-05 | S133: 一
A134: 2025-05-06 | B134: 二 | C134: 110 | D134: 230 | E134: 0 | F134: 0 | G134: 0 | H134: 0 | I134: 35 | J134: 0 | K134: 0 | L134: 0 | M134: 0 | N134: 0 | O134: 265 | P134: 154 | Q134: 满意 | R134: 2025-05-06 | S134: 二
A135: 2025-05-07 | B135: 三 | C135: 100 | D135: 125 | E135: 0 | F135: 0 | G135: 0 | H135: 0 | I135: 40 | J135: 50 | K135: 0 | L135: 0 | M135: 0 | N135: 0 | O135: 215 | P135: 155 | Q135: 满意 | R135: 2025-05-07 | S135: 三
A136: 2025-05-08 | B136: 四 | C136: 0 | D136: 10 | E136: 0 | F136: 0 | G136: 0 | H136: 0 | I136: 0 | J136: 0 | K136: 0 | L136: 0 | M136: 0 | N136: 445 | O136: 455 | P136: 157 | Q136: 不满意 | R136: 2025-05-08 | S136: 四
A137: 2025-05-09 | B137: 五 | C137: 0 | D137: 0 | E137: 0 | F137: 0 | G137: 375 | H137: 30 | I137: 0 | J137: 0 | K137: 0 | L137: 0 | M137: 0 | N137: 0 | O137: 405 | P137: 159 | Q137: 满意 | R137: 2025-05-09 | S137: 五
A138: 2025-05-10 | B138: 六 | C138: 0 | D138: 0 | E138: 0 | F138: 0 | G138: 165 | H138: 0 | I138: 0 | J138: 0 | K138: 0 | L138: 0 | M138: 0 | N138: 0 | O138: 165 | P138: 159 | Q138: 满意 | R138: 2025-05-10 | S138: 六
A139: 2025-05-11 | B139: 日 | C139: 0 | D139: 0 | E139: 0 | F139: 0 | G139: 90 | H139: 0 | I139: 0 | J139: 0 | K139: 0 | L139: 0 | M139: 0 | N139: 0 | O139: 90 | P139: 158 | Q139: 满意 | R139: 2025-05-11 | S139: 日
A140: 2025-05-12 | B140: 一 | C140: 0 | D140: 0 | E140: 0 | F140: 0 | G140: 385 | H140: 0 | I140: 0 | J140: 35 | K140: 0 | L140: 0 | M140: 0 | N140: 0 | O140: 420 | P140: 160 | Q140: 满意 | R140: 2025-05-12 | S140: 一
A141: 2025-05-13 | B141: 二 | C141: 10 | D141: 0 | E141: 0 | F141: 0 | G141: 175 | H141: 0 | I141: 0 | J141: 0 | K141: 0 | L141: 0 | M141: 0 | N141: 0 | O141: 175 | P141: 160 | Q141: 不满意 | R141: 2025-05-13 | S141: 二
A142: 2025-05-14 | B142: 三 | C142: 40 | D142: 0 | E142: 0 | F142: 0 | G142: 335 | H142: 0 | I142: 0 | J142: 0 | K142: 0 | L142: 0 | M142: 0 | N142: 0 | O142: 335 | P142: 161 | Q142: 满意 | R142: 2025-05-14 | S142: 三
A143: 2025-05-15 | B143: 四 | C143: 40 | D143: 0 | E143: 0 | F143: 0 | G143: 205 | H143: 0 | I143: 0 | J143: 30 | K143: 0 | L143: 0 | M143: 0 | N143: 0 | O143: 235 | P143: 162 | Q143: 满意 | R143: 2025-05-15 | S143: 四
A144: 2025-05-16 | B144: 五 | C144: 40 | D144: 0 | E144: 0 | F144: 0 | G144: 240 | H144: 60 | I144: 0 | J144: 0 | K144: 0 | L144: 0 | M144: 0 | N144: 0 | O144: 300 | P144: 163 | Q144: 很满意 | R144: 2025-05-16 | S144: 五
A145: 2025-05-17 | B145: 六 | C145: 0 | D145: 0 | E145: 0 | F145: 0 | G145: 0 | H145: 100 | I145: 0 | J145: 0 | K145: 0 | L145: 0 | M145: 0 | N145: 180 | O145: 280 | P145: 164 | Q145: 满意 | R145: 2025-05-17 | S145: 六
A146: 2025-05-18 | B146: 日 | C146: 0 | D146: 0 | E146: 0 | F146: 0 | G146: 0 | H146: 0 | I146: 0 | J146: 0 | K146: 0 | L146: 0 | M146: 0 | N146: 0 | O146: 0 | P146: 163 | Q146: 满意 | R146: 2025-05-18 | S146: 日
A147: 2025-05-19 | B147: 一 | C147: 30 | D147: 0 | E147: 0 | F147: 0 | G147: 35 | H147: 15 | I147: 0 | J147: 35 | K147: 0 | L147: 0 | M147: 0 | N147: 295 | O147: 380 | P147: 164 | Q147: 很满意 | R147: 2025-05-19 | S147: 一
A148: 2025-05-20 | B148: 二 | C148: 50 | D148: 0 | E148: 0 | F148: 0 | G148: 0 | H148: 0 | I148: 0 | J148: 0 | K148: 0 | L148: 0 | M148: 0 | N148: 150 | O148: 150 | P148: 164 | Q148: 满意 | R148: 2025-05-20 | S148: 二
A149: 2025-05-21 | B149: 三 | C149: 5 | D149: 0 | E149: 0 | F149: 0 | G149: 85 | H149: 0 | I149: 0 | J149: 20 | K149: 0 | L149: 0 | M149: 0 | N149: 65 | O149: 170 | P149: 164 | Q149: 满意 | R149: 2025-05-21 | S149: 三
A150: 2025-05-22 | B150: 四 | C150: 45 | D150: 0 | E150: 0 | F150: 0 | G150: 175 | H150: 0 | I150: 0 | J150: 0 | K150: 0 | L150: 0 | M150: 0 | N150: 0 | O150: 175 | P150: 164 | Q150: 满意 | R150: 2025-05-22 | S150: 四
A151: 2025-05-23 | B151: 五 | C151: 0 | D151: 0 | E151: 0 | F151: 0 | G151: 325 | H151: 0 | I151: 0 | J151: 0 | K151: 0 | L151: 0 | M151: 0 | N151: 0 | O151: 325 | P151: 165 | Q151: 满意 | R151: 2025-05-23 | S151: 五
A152: 2025-05-24 | B152: 六 | C152: 0 | D152: 0 | E152: 0 | F152: 0 | G152: 50 | H152: 0 | I152: 0 | J152: 0 | K152: 0 | L152: 0 | M152: 0 | N152: 0 | O152: 50 | P152: 165 | Q152: 满意 | R152: 2025-05-24 | S152: 六
A153: 2025-05-25 | B153: 日 | C153: 40 | D153: 0 | E153: 0 | F153: 0 | G153: 55 | H153: 0 | I153: 0 | J153: 0 | K153: 0 | L153: 0 | M153: 0 | N153: 0 | O153: 55 | P153: 164 | Q153: 满意 | R153: 2025-05-25 | S153: 日
A154: 2025-05-26 | B154: 一 | C154: 35 | D154: 0 | E154: 0 | F154: 0 | G154: 345 | H154: 0 | I154: 0 | J154: 0 | K154: 0 | L154: 0 | M154: 0 | N154: 0 | O154: 345 | P154: 165 | Q154: 满意 | R154: 2025-05-26 | S154: 一
A155: 2025-05-27 | B155: 二 | C155: 20 | D155: 0 | E155: 0 | F155: 0 | G155: 80 | H155: 0 | I155: 0 | J155: 0 | K155: 0 | L155: 0 | M155: 0 | N155: 0 | O155: 80 | P155: 164 | Q155: 不满意 | R155: 2025-05-27 | S155: 二
A156: 2025-05-28 | B156: 三 | C156: 0 | D156: 0 | E156: 0 | F156: 0 | G156: 225 | H156: 0 | I156: 0 | J156: 5 | K156: 0 | L156: 0 | M156: 0 | N156: 0 | O156: 230 | P156: 165 | Q156: 满意 | R156: 2025-05-28 | S156: 三
A157: 2025-05-29 | B157: 四 | C157: 0 | D157: 0 | E157: 0 | F157: 0 | G157: 0 | H157: 0 | I157: 0 | J157: 0 | K157: 0 | L157: 0 | M157: 0 | N157: 0 | O157: 0 | P157: 164 | Q157: 满意 | R157: 2025-05-29 | S157: 四
A158: 2025-05-30 | B158: 五 | C158: 0 | D158: 0 | E158: 0 | F158: 0 | G158: 55 | H158: 0 | I158: 0 | J158: 0 | K158: 0 | L158: 0 | M158: 0 | N158: 0 | O158: 55 | P158: 163 | Q158: 满意 | R158: 2025-05-30 | S158: 五
A159: 2025-05-31 | B159: 六 | C159: 45 | D159: 0 | E159: 0 | F159: 0 | G159: 0 | H159: 0 | I159: 0 | J159: 15 | K159: 0 | L159: 0 | M159: 0 | N159: 375 | O159: 390 | P159: 165 | Q159: 满意 | R159: 2025-05-31 | S159: 六
A160: 2025-06-01 | B160: 日 | C160: 60 | D160: 20 | E160: 0 | F160: 0 | G160: 0 | H160: 0 | I160: 0 | J160: 25 | K160: 0 | L160: 0 | M160: 0 | N160: 85 | O160: 130 | P160: 164 | Q160: 一般 | R160: 2025-06-01 | S160: 日
A161: 2025-06-02 | B161: 一 | C161: 0 | D161: 0 | E161: 0 | F161: 0 | G161: 0 | H161: 0 | I161: 0 | J161: 0 | K161: 0 | L161: 0 | M161: 0 | N161: 40 | O161: 40 | P161: 164 | Q161: 满意 | R161: 2025-06-02 | S161: 一
A162: 2025-06-03 | B162: 二 | C162: 40 | D162: 0 | E162: 0 | F162: 0 | G162: 0 | H162: 0 | I162: 0 | J162: 0 | K162: 0 | L162: 0 | M162: 0 | N162: 135 | O162: 135 | P162: 163 | Q162: 满意 | R162: 2025-06-03 | S162: 二
A163: 2025-06-04 | B163: 三 | C163: 40 | D163: 0 | E163: 0 | F163: 0 | G163: 0 | H163: 0 | I163: 0 | J163: 15 | K163: 0 | L163: 0 | M163: 0 | N163: 105 | O163: 120 | P163: 163 | Q163: 满意 | R163: 2025-06-04 | S163: 三
A164: 2025-06-05 | B164: 四 | C164: 0 | D164: 0 | E164: 0 | F164: 0 | G164: 0 | H164: 0 | I164: 0 | J164: 0 | K164: 0 | L164: 0 | M164: 0 | N164: 0 | O164: 0 | P164: 162 | Q164: 满意 | R164: 2025-06-05 | S164: 四
A165: 2025-06-06 | B165: 五 | C165: 35 | D165: 0 | E165: 0 | F165: 0 | G165: 0 | H165: 0 | I165: 0 | J165: 0 | K165: 0 | L165: 0 | M165: 0 | N165: 115 | O165: 115 | P165: 162 | Q165: 满意 | R165: 2025-06-06 | S165: 五
A166: 2025-06-07 | B166: 六 | C166: 0 | D166: 240 | E166: 0 | F166: 0 | G166: 0 | H166: 0 | I166: 0 | J166: 0 | K166: 0 | L166: 0 | M166: 0 | N166: 0 | O166: 240 | P166: 162 | Q166: 一般 | R166: 2025-06-07 | S166: 六
A167: 2025-06-08 | B167: 日 | C167: 0 | D167: 105 | E167: 0 | F167: 0 | G167: 0 | H167: 0 | I167: 0 | J167: 0 | K167: 0 | L167: 0 | M167: 0 | N167: 0 | O167: 105 | P167: 162 | Q167: 不满意 | R167: 2025-06-08 | S167: 日
A168: 2025-06-09 | B168: 一 | C168: 0 | D168: 0 | E168: 0 | F168: 0 | G168: 0 | H168: 0 | I168: 0 | J168: 0 | K168: 0 | L168: 0 | M168: 0 | N168: 0 | O168: 0 | P168: 161 | Q168: 很满意 | R168: 2025-06-09 | S168: 一
A169: 2025-06-10 | B169: 二 | C169: 0 | D169: 0 | E169: 0 | F169: 0 | G169: 0 | H169: 0 | I169: 0 | J169: 0 | K169: 0 | L169: 0 | M169: 0 | N169: 0 | O169: 0 | P169: 160 | Q169: 很满意 | R169: 2025-06-10 | S169: 二
A170: 2025-06-11 | B170: 三 | C170: 0 | D170: 0 | E170: 0 | F170: 0 | G170: 0 | H170: 0 | I170: 0 | J170: 0 | K170: 0 | L170: 0 | M170: 0 | N170: 0 | O170: 0 | P170: 159 | Q170: 满意 | R170: 2025-06-11 | S170: 三
A171: 2025-06-12 | B171: 四 | C171: 0 | D171: 0 | E171: 0 | F171: 0 | G171: 0 | H171: 0 | I171: 0 | J171: 0 | K171: 0 | L171: 0 | M171: 0 | N171: 0 | O171: 0 | P171: 158 | Q171: 满意 | R171: 2025-06-12 | S171: 四
A172: 2025-06-13 | B172: 五 | C172: 0 | D172: 0 | E172: 0 | F172: 0 | G172: 0 | H172: 0 | I172: 0 | J172: 0 | K172: 0 | L172: 0 | M172: 0 | N172: 0 | O172: 0 | P172: 157 | Q172: 一般 | R172: 2025-06-13 | S172: 五
A173: 2025-06-14 | B173: 六 | C173: 0 | D173: 0 | E173: 0 | F173: 0 | G173: 0 | H173: 0 | I173: 0 | J173: 0 | K173: 0 | L173: 0 | M173: 0 | N173: 0 | O173: 0 | P173: 156 | Q173: 满意 | R173: 2025-06-14 | S173: 六
A174: 2025-06-15 | B174: 日 | C174: 0 | D174: 0 | E174: 0 | F174: 0 | G174: 0 | H174: 0 | I174: 0 | J174: 0 | K174: 0 | L174: 0 | M174: 0 | N174: 0 | O174: 0 | P174: 155 | Q174: 满意 | R174: 2025-06-15 | S174: 日
A175: 2025-06-16 | B175: 一 | C175: 0 | D175: 0 | E175: 0 | F175: 0 | G175: 0 | H175: 0 | I175: 0 | J175: 0 | K175: 0 | L175: 0 | M175: 0 | N175: 0 | O175: 0 | P175: 154 | Q175: 满意 | R175: 2025-06-16 | S175: 一
A176: 2025-06-17 | B176: 二 | C176: 0 | D176: 0 | E176: 0 | F176: 0 | G176: 0 | H176: 0 | I176: 0 | J176: 0 | K176: 0 | L176: 0 | M176: 0 | N176: 0 | O176: 0 | P176: 153 | Q176: 满意 | R176: 2025-06-17 | S176: 二
A177: 2025-06-18 | B177: 三 | C177: 0 | D177: 0 | E177: 0 | F177: 0 | G177: 0 | H177: 0 | I177: 0 | J177: 0 | K177: 0 | L177: 0 | M177: 0 | N177: 0 | O177: 0 | P177: 153 | Q177: 满意 | R177: 2025-06-18 | S177: 三
A178: 2025-06-19 | B178: 四 | C178: 0 | D178: 0 | E178: 0 | F178: 0 | G178: 0 | H178: 0 | I178: 0 | J178: 0 | K178: 0 | L178: 0 | M178: 0 | N178: 0 | O178: 0 | P178: 152 | Q178: 满意 | R178: 2025-06-19 | S178: 四
A179: 2025-06-20 | B179: 五 | C179: 0 | D179: 0 | E179: 0 | F179: 0 | G179: 0 | H179: 0 | I179: 0 | J179: 0 | K179: 0 | L179: 0 | M179: 0 | N179: 0 | O179: 0 | P179: 151 | Q179: 满意 | R179: 2025-06-20 | S179: 五
A180: 2025-06-21 | B180: 六 | C180: 0 | D180: 0 | E180: 0 | F180: 0 | G180: 0 | H180: 0 | I180: 0 | J180: 0 | K180: 0 | L180: 0 | M180: 0 | N180: 0 | O180: 0 | P180: 150 | Q180: 满意 | R180: 2025-06-21 | S180: 六
A181: 2025-06-22 | B181: 日 | C181: 0 | D181: 0 | E181: 0 | F181: 0 | G181: 0 | H181: 0 | I181: 0 | J181: 0 | K181: 0 | L181: 0 | M181: 0 | N181: 0 | O181: 0 | P181: 149 | Q181: 满意 | R181: 2025-06-22 | S181: 日
A182: 2025-06-23 | B182: 一 | C182: 0 | D182: 0 | E182: 0 | F182: 0 | G182: 0 | H182: 0 | I182: 0 | J182: 0 | K182: 0 | L182: 0 | M182: 0 | N182: 0 | O182: 0 | P182: 148 | Q182: 满意 | R182: 2025-06-23 | S182: 一
A183: 2025-06-24 | B183: 二 | C183: 0 | D183: 0 | E183: 0 | F183: 0 | G183: 0 | H183: 0 | I183: 0 | J183: 0 | K183: 0 | L183: 0 | M183: 0 | N183: 0 | O183: 0 | P183: 148 | Q183: 满意 | R183: 2025-06-24 | S183: 二
A184: 2025-06-25 | B184: 三 | C184: 0 | D184: 0 | E184: 0 | F184: 0 | G184: 0 | H184: 0 | I184: 0 | J184: 0 | K184: 0 | L184: 0 | M184: 0 | N184: 0 | O184: 0 | P184: 147 | Q184: 满意 | R184: 2025-06-25 | S184: 三
A185: 2025-06-26 | B185: 四 | C185: 0 | D185: 0 | E185: 0 | F185: 0 | G185: 0 | H185: 0 | I185: 0 | J185: 0 | K185: 0 | L185: 0 | M185: 0 | N185: 0 | O185: 0 | P185: 146 | Q185: 满意 | R185: 2025-06-26 | S185: 四
A186: 2025-06-27 | B186: 五 | C186: 0 | D186: 0 | E186: 0 | F186: 0 | G186: 0 | H186: 0 | I186: 0 | J186: 0 | K186: 0 | L186: 0 | M186: 0 | N186: 0 | O186: 0 | P186: 145 | Q186: 满意 | R186: 2025-06-27 | S186: 五
A187: 2025-06-28 | B187: 六 | C187: 0 | D187: 0 | E187: 0 | F187: 0 | G187: 0 | H187: 0 | I187: 0 | J187: 0 | K187: 0 | L187: 0 | M187: 0 | N187: 0 | O187: 0 | P187: 144 | Q187: 满意 | R187: 2025-06-28 | S187: 六
A188: 2025-06-29 | B188: 日 | C188: 0 | D188: 0 | E188: 0 | F188: 0 | G188: 0 | H188: 0 | I188: 0 | J188: 0 | K188: 0 | L188: 0 | M188: 0 | N188: 0 | O188: 0 | P188: 144 | Q188: 满意 | R188: 2025-06-29 | S188: 日
A189: 2025-06-30 | B189: 一 | C189: 0 | D189: 0 | E189: 0 | F189: 0 | G189: 0 | H189: 0 | I189: 0 | J189: 0 | K189: 0 | L189: 0 | M189: 0 | N189: 0 | O189: 0 | P189: 143 | Q189: 满意 | R189: 2025-06-30 | S189: 一
A190: 2025-07-01 | B190: 二 | C190: 0 | D190: 0 | E190: 0 | F190: 0 | G190: 0 | H190: 0 | I190: 0 | J190: 0 | K190: 0 | L190: 0 | M190: 0 | N190: 0 | O190: 0 | P190: 142 | Q190: 满意 | R190: 2025-07-01 | S190: 二
A191: 2025-07-02 | B191: 三 | C191: 0 | D191: 0 | E191: 0 | F191: 0 | G191: 0 | H191: 0 | I191: 0 | J191: 0 | K191: 0 | L191: 0 | M191: 0 | N191: 0 | O191: 0 | P191: 141 | Q191: 满意 | R191: 2025-07-02 | S191: 三
A192: 2025-07-03 | B192: 四 | C192: 0 | D192: 0 | E192: 0 | F192: 0 | G192: 0 | H192: 0 | I192: 0 | J192: 0 | K192: 0 | L192: 0 | M192: 0 | N192: 0 | O192: 0 | P192: 140 | Q192: 满意 | R192: 2025-07-03 | S192: 四
A193: 2025-07-04 | B193: 五 | C193: 0 | D193: 0 | E193: 0 | F193: 0 | G193: 0 | H193: 0 | I193: 0 | J193: 0 | K193: 0 | L193: 0 | M193: 0 | N193: 0 | O193: 0 | P193: 140 | Q193: 满意 | R193: 2025-07-04 | S193: 五
A194: 2025-07-05 | B194: 六 | C194: 0 | D194: 0 | E194: 0 | F194: 0 | G194: 0 | H194: 0 | I194: 0 | J194: 0 | K194: 0 | L194: 0 | M194: 0 | N194: 0 | O194: 0 | P194: 139 | Q194: 满意 | R194: 2025-07-05 | S194: 六
A195: 2025-07-06 | B195: 日 | C195: 0 | D195: 0 | E195: 0 | F195: 0 | G195: 0 | H195: 0 | I195: 0 | J195: 0 | K195: 0 | L195: 0 | M195: 0 | N195: 0 | O195: 0 | P195: 138 | Q195: 满意 | R195: 2025-07-06 | S195: 日
A196: 2025-07-07 | B196: 一 | C196: 0 | D196: 0 | E196: 0 | F196: 0 | G196: 0 | H196: 0 | I196: 0 | J196: 0 | K196: 0 | L196: 0 | M196: 0 | N196: 0 | O196: =SUM(D196:N196) -> 0 | P196: 138 | Q196: 满意 | R196: 2025-07-07 | S196: 一
A197: 2025-07-08 | B197: 二 | C197: 0 | D197: 0 | E197: 0 | F197: 0 | G197: 0 | H197: 0 | I197: 0 | J197: 0 | K197: 0 | L197: 0 | M197: 0 | N197: 0 | O197: 0 | P197: 137 | Q197: 满意 | R197: 2025-07-08 | S197: 二
A198: 2025-07-09 | B198: 三 | C198: 0 | D198: 0 | E198: 0 | F198: 0 | G198: 0 | H198: 0 | I198: 0 | J198: 0 | K198: 0 | L198: 0 | M198: 0 | N198: 0 | O198: 0 | P198: 136 | Q198: 满意 | R198: 2025-07-09 | S198: 三
A199: 2025-07-10 | B199: 四 | C199: 0 | D199: 0 | E199: 0 | F199: 0 | G199: 0 | H199: 0 | I199: 0 | J199: 0 | K199: 0 | L199: 0 | M199: 0 | N199: 0 | O199: 0 | P199: 135 | Q199: 满意 | R199: 2025-07-10 | S199: 四
A200: 2025-07-11 | B200: 五 | C200: 0 | D200: 0 | E200: 0 | F200: 0 | G200: 0 | H200: 0 | I200: 0 | J200: 0 | K200: 0 | L200: 0 | M200: 0 | N200: 0 | O200: 0 | P200: 135 | Q200: 满意 | R200: 2025-07-11 | S200: 五
... 898 more rows

Sheet 月度统计
A1: 日期 | B1: 华盖收入 （元） | C1: 减肥时间 | D1: 前端 | E1: 后端 | F1: JavaScript | G1: PHP | H1: 数据库 | I1: 网络 | J1: 英语 | K1: 软考时间 | L1: 华盖时间 | M1: 碎片时间 | N1: 其他 | O1: 柳比歇夫时间 合计 | P1: 本月天数 | Q1: 平均减肥时间 （m/天） | R1: 平均学习时间 （m/天） | S1: 本月满意度
A2: 2025-01-01 | B2: 4900 | C2: 1040 | D2: 2945 | E2: 0 | F2: 560 | G2: 0 | H2: 0 | I2: 0 | J2: 2515 | K2: 0 | L2: 0 | M2: 0 | N2: 430 | O2: =SUM(D2:N2) -> 6450 | P2: 43 | Q2: =C2/P2 -> 24.18604651 | R2: =O2/P2 -> 150 | S2: 满意
A3: 2025-02-01 | B3: 200 | C3: 400 | D3: 810 | E3: 0 | F3: 760 | G3: 0 | H3: 0 | I3: 150 | J3: 45 | K3: 0 | L3: 0 | M3: 0 | N3: 285 | O3: =SUM(D3:N3) -> 2050 | P3: 24 | Q3: 16.66666667 | R3: 85.41666667 | S3: 满意
A4: 2025-03-01 | B4: 0 | C4: 395 | D4: 240 | E4: 0 | F4: 611 | G4: 0 | H4: 944 | I4: 306 | J4: 17 | K4: 0 | L4: 0 | M4: 0 | N4: 25 | O4: 2143 | P4: 27 | Q4: 14.62962963 | R4: 79.37037037 | S4: 不满意
A5: 2025-04-01 | B5: 3900 | C5: 863 | D5: 0 | E5: 0 | F5: 873 | G5: 0 | H5: 5365 | I5: 0 | J5: 820 | K5: 0 | L5: 0 | M5: 0 | N5: 0 | O5: 7058 | P5: 28 | Q5: 30.82142857 | R5: 252.0714286 | S5: 满意
A6: 2025-05-01 | B6: 0 | C6: 925 | D6: 1500 | E6: 0 | F6: 0 | G6: 3400 | H6: 635 | I6: 75 | J6: 515 | K6: 0 | L6: 250 | M6: 0 | N6: 1135 | O6: 7510 | P6: 33 | Q6: 28.03030303 | R6: 227.5757576 | S6: 满意
A7: 2025-06-01 | B7: 0 | C7: 220 | D7: 365 | E7: 0 | F7: 0 | G7: 0 | H7: 0 | I7: 0 | J7: 55 | K7: 0 | L7: 0 | M7: 0 | N7: 855 | O7: 1275 | P7: 31 | Q7: 7.096774194 | R7: 41.12903226 | S7: 很满意
A8: 2025-07-01 | B8: 3900 | C8: 0 | D8: 0 | E8: 0 | F8: 0 | G8: 0 | H8: 0 | I8: 0 | J8: 0 | K8: 0 | L8: 0 | M8: 0 | N8: 0 | O8: 0 | P8: 34 | Q8: 0 | R8: 0 | S8: 还算满意
A9: 2025-08-01 | B9: 0 | C9: 260 | D9: 0 | E9: 0 | F9: 0 | G9: 940 | H9: 0 | I9: 0 | J9: 0 | K9: 0 | L9: 0 | M9: 0 | N9: 330 | O9: 1270 | P9: 28 | Q9: 9.285714286 | R9: 45.35714286 | S9: 一般
A10: 2025-09-01 | B10: 0 | C10: 575 | D10: 925 | E10: 0 | F10: 0 | G10: 4245 | H10: 350 | I10: 0 | J10: 50 | K10: 0 | L10: 0 | M10: 0 | N10: 720 | O10: 6290 | P10: 30 | Q10: 19.16666667 | R10: 209.6666667 | S10: 满意
A11: 2025-10-01 | B11: 16071 | C11: 195 | D11: 0 | E11: 0 | F11: 0 | G11: 4570 | H11: 0 | I11: 0 | J11: 205 | K11: 0 | L11: 0 | M11: 0 | N11: 1350 | O11: 6125 | P11: 31 | Q11: 6.290322581 | R11: 197.5806452 | S11: 满意
A12: 2025-11-01 | B12: 0 | C12: 0 | D12: 0 | E12: 0 | F12: 0 | G12: 3080 | H12: 0 | I12: 0 | J12: 0 | K12: 0 | L12: 185 | M12: 0 | N12: 200 | O12: 3465 | P12: 30 | Q12: 0 | R12: 115.5 | S12: 还算满意
A13: 2025-12-01 | B13: 0 | C13: 30 | D13: 0 | E13: 0 | F13: 0 | G13: 900 | H13: 0 | I13: 0 | J13: 0 | K13: 0 | L13: 0 | M13: 0 | N13: 400 | O13: 1300 | P13: 31 | Q13: 0.9677419355 | R13: 41.93548387 | S13: 不满意
A14: 2025年合计 | B14: =SUM(B2:B13) -> 28971 | C14: 4903 | D14: 6785 | E14: 0 | F14: 2804 | G14: 17135 | H14: 7294 | I14: 531 | J14: 4222 | K14: 0 | L14: 435 | M14: 0 | N14: 5730 | O14: 44936 | P14: =SUM(P2:P13) -> 370 | Q14: 13.25135135 | R14: 121.4486486
A15: 2026-01-01 | B15: 0 | C15: 15 | D15: 340 | E15: 0 | F15: 0 | G15: 350 | H15: 0 | I15: 0 | J15: 0 | K15: 0 | L15: 0 | M15: 0 | N15: 2765 | O15: 3455 | P15: 31 | Q15: =C15/P15 -> 0.4838709677 | R15: =O15/P15 -> 111.4516129 | S15: 很满意
A16: 2026-02-01 | B16: 0 | C16: 105 | D16: 1335 | E16: 0 | F16: 0 | G16: 0 | H16: 0 | I16: 0 | J16: 0 | K16: 0 | L16: 0 | M16: 329 | N16: 60 | O16: 1724 | P16: 28 | Q16: 3.75 | R16: 61.57142857
A17: 2026-03-01 | O17: 0
A18: 2026-04-01 | O18: 0
A19: 2026-05-01 | O19: 0
A20: 2026-06-01 | O20: 0
A21: 2026-07-01 | O21: 0
A22: 2026-08-01 | O22: 0
A23: 2026-09-01 | O23: 0
A24: 2026-10-01 | O24: 0
A25: 2026-11-01 | O25: 0
A26: 2026-12-01 | O26: 0
A27: 2027-01-01 | O27: 0
A28: 2026年合计

Sheet 年度统计
A1: 年度 | B1: 华盖收入 （元） | C1: 减肥时间 | D1: 前端 | E1: 后端 | F1: JavaScript | G1: PHP | H1: 数据库 | I1: 网络 | J1: 英语 | K1: 软考时间 | L1: 华盖时间 | M1: 碎片时间 | N1: 其他 | O1: 柳比歇夫时间 合计 | P1: 今年天数 | Q1: 平均减肥时间 （m/天） | R1: 平均学习时间 （m/天） | S1: 今年满意度
A2: 2025 | B2: 28971 | C2: 4903 | D2: 6785 | E2: 0 | F2: 2804 | G2: 17135 | H2: 7294 | I2: 531 | J2: 4222 | K2: 0 | L2: 435 | M2: 0 | N2: 5730 | O2: =SUM(D2:N2) -> 44936 | P2: 370 | Q2: =C2/P2 -> 13.25135135 | R2: =O2/P2 -> 121.4486486 | S2: 满意
A3: 2026 | O3: 0 | P3: 24 | Q3: 0 | R3: 0
A4: 2027 | O4: 0 | P4: 27 | Q4: 0 | R4: 0
A5: 2028 | O5: 0 | P5: 28 | Q5: 0 | R5: 0
A6: 2029 | O6: 0 | P6: 33 | Q6: 0 | R6: 0
A7: 2030 | O7: 0 | P7: 31 | Q7: 0 | R7: 0
A8: 2031 | O8: 0 | P8: 34 | Q8: 0 | R8: 0
A9: 2032 | O9: 0 | P9: 28 | Q9: 0 | R9: 0
A10: 2033 | O10: 0 | P10: 30 | Q10: 0 | R10: 0
A11: 2034 | O11: 0 | P11: 31 | Q11: 0 | R11: 0
A12: 2035 | O12: 0 | P12: 30 | Q12: 0 | R12: 0

Sheet 项目
A1: 今日满意度
A2: 很满意
A3: 满意
A4: 还算满意
A5: 一般
A6: 不满意
A7: 很不满意
